bitfinex/quotes_BTCUSD_20241229
["timestamp","ask_amount","ask_price","bid_price","bid_amount"]
[1735491362511,0.400228,94088.0,94074.0,0.0001706]
[1735491362713,0.44146683,94092.0,94074.0,0.0001706]
[1735491362714,0.18254,94087.0,94074.0,0.0001706]
[1735491362901,0.307385,94091.0,94074.0,0.0001706]
[1735491363107,0.200675,94091.0,94074.0,0.0001706]
[1735491363518,0.23776962,94075.0,94074.0,0.0001706]
[1735491364524,0.44146683,94092.0,94074.0,0.0001706]
[1735491364525,0.28532354,94081.0,94074.0,0.0001706]
[1735491365688,0.28532354,94078.0,94074.0,0.0001706]
[1735491366668,0.28532354,94079.0,94074.0,0.0001706]
[1735491367283,0.28532354,94079.0,94074.0,0.0021706]
[1735491367510,0.28532354,94079.0,94076.0,0.098]
[1735491367923,0.28532354,94080.0,94076.0,0.098]
[1735491368071,0.28532354,94080.0,94074.0,0.0011706]
[1735491368454,8.53e-05,94090.0,94076.0,0.098]
[1735491368455,0.28532354,94083.0,94076.0,0.098]
[1735491369563,0.2375297,94078.0,94076.0,0.098]
[1735491370394,0.2375297,94078.0,94076.0,0.099]
[1735491370639,8.53e-05,94090.0,94076.0,0.098]
[1735491370640,0.2375297,94079.0,94076.0,0.098]
[1735491371181,0.2375297,94079.0,94076.0,0.002]
[1735491371716,0.2375297,94078.0,94076.0,0.002]
[1735491371918,0.2375297,94078.0,94074.0,0.0001706]
[1735491373529,0.2375297,94077.0,94076.0,0.001]
[1735491373856,0.2375297,94077.0,94074.0,0.0001706]
[1735491374245,0.2375297,94077.0,94074.0,0.0021706]
[1735491374444,0.2375297,94077.0,94074.0,0.0001706]
[1735491374598,0.28532354,94082.0,94074.0,0.0001706]
[1735491374804,0.28532354,94082.0,94076.0,0.002]
[1735491375213,0.28532354,94082.0,94074.0,0.0001706]
[1735491375406,0.28532354,94081.0,94074.0,0.0001706]
[1735491376266,0.28532354,94083.0,94074.0,0.0001706]
[1735491377307,0.28532354,94083.0,94074.0,0.0021706]
[1735491377944,0.28532354,94083.0,94074.0,0.0001706]
[1735491378583,0.28532354,94083.0,94074.0,0.0011706]
[1735491379094,0.28532354,94083.0,94074.0,0.0001706]
[1735491379532,0.28632354,94083.0,94074.0,0.0001706]
[1735491380808,0.28532354,94082.0,94074.0,0.0001706]
[1735491382261,0.28632354,94082.0,94074.0,0.0001706]
[1735491386422,0.28532354,94078.0,94074.0,0.0001706]
[1735491387775,0.28532354,94076.0,94074.0,0.0001706]
[1735491387978,0.28532354,94076.0,94074.0,0.0021706]
[1735491388927,0.32076683,94078.0,94074.0,0.0021706]
[1735491389174,0.002,94076.0,94074.0,0.0001706]
[1735491389373,2.797221,94075.0,94074.0,0.0001706]
[1735491389604,1.679789,94075.0,94074.0,0.0011706]
[1735491389767,1.30171723,94075.0,94074.0,0.0011706]
[1735491390335,0.96978023,94075.0,94074.0,0.0001706]
[1735491390890,0.082,94075.0,94074.0,0.003]
[1735491391088,1.734196,94075.0,94074.0,0.003]
[1735491391418,1.289318,94075.0,94070.0,0.0001706]
[1735491391633,1.015048,94074.0,94070.0,0.0001706]
[1735491392193,1.75037,94078.0,94070.0,0.0001706]
[1735491392395,0.005,94075.0,94070.0,0.0001706]
[1735491392595,0.890166,94074.0,94070.0,0.0001706]
[1735491393356,0.892166,94074.0,94070.0,0.0001706]
[1735491393512,1.290436,94073.0,94070.0,0.0001706]
[1735491393887,0.971316,94073.0,94070.0,0.0001706]
[1735491394139,0.702358,94073.0,94070.0,0.0001706]
[1735491394348,0.971318,94073.0,94070.0,0.0001706]
[1735491394538,1.262688,94072.0,94070.0,0.0001706]
[1735491394735,1.030017,94073.0,94070.0,0.0001706]
[1735491394941,1.647983,94073.0,94070.0,0.0001706]
[1735491395120,1.427052,94073.0,94070.0,0.0001706]
[1735491395342,1.012943,94073.0,94070.0,0.0001706]
[1735491395546,0.694888,94072.0,94070.0,0.0001706]
[1735491395741,0.00554563,94079.0,94070.0,0.0001706]
[1735491395742,0.702358,94073.0,94070.0,0.0001706]
[1735491395982,0.003,94074.0,94070.0,0.0001706]
[1735491396188,1.432254,94073.0,94070.0,0.0001706]
[1735491396341,1.025749,94072.0,94070.0,0.0001706]
[1735491396653,0.780272,94072.0,94070.0,0.0001706]
[1735491396877,1.025749,94072.0,94070.0,0.0001706]
[1735491397985,0.785609,94072.0,94070.0,0.0001706]
[1735491398208,0.780272,94072.0,94070.0,0.0001706]
[1735491398361,1.035359,94072.0,94070.0,0.0001706]
[1735491398562,0.701292,94072.0,94070.0,0.0001706]
[1735491399092,0.703292,94072.0,94070.0,0.0001706]
[1735491399257,2.876535,94071.0,94070.0,0.0001706]
[1735491399769,2.816818,94071.0,94070.0,0.0001706]
[1735491399971,2.50702123,94071.0,94070.0,0.0001706]
[1735491400177,2.43231423,94071.0,94070.0,0.0001706]
[1735491400390,2.43236503,94071.0,94070.0,0.0001706]
[1735491400789,1.43752503,94071.0,94070.0,0.0001706]
[1735491400979,1.21817549,94071.0,94070.0,0.0001706]
[1735491401812,1.19816626,94071.0,94070.0,0.0001706]
[1735491402385,1.06687726,94071.0,94070.0,0.0001706]
[1735491402608,0.78936126,94071.0,94070.0,0.0001706]
[1735491403088,0.70181726,94071.0,94070.0,0.0001706]
[1735491404158,0.01973026,94071.0,94070.0,0.0001706]
[1735491404475,1.10529626,94071.0,94070.0,0.0001706]
[1735491404718,1.05085426,94071.0,94070.0,0.0001706]
[1735491404896,0.85658326,94071.0,94070.0,0.0001706]
[1735491405890,0.73383726,94071.0,94070.0,0.0001706]
[1735491406071,0.68367426,94071.0,94070.0,0.0001706]
[1735491406899,0.6669948,94071.0,94070.0,0.0001706]
[1735491408033,0.98770264,94071.0,94070.0,0.0001706]
[1735491410147,1.0043821,94071.0,94070.0,0.0001706]
[1735491410695,1.0865821,94071.0,94070.0,0.0001706]
[1735491410993,0.002,94070.0,94051.0,0.07693934]
[1735491411157,2.81158,94069.0,94051.0,0.07693934]
[1735491411735,0.005546,94068.0,94051.0,0.07693934]
[1735491412006,0.28498781,94056.0,94051.0,0.07693934]
[1735491412196,0.588256,94055.0,94051.0,0.07693934]
[1735491412616,0.453757,94054.0,94051.0,0.07693934]
[1735491412766,0.56010313,94055.0,94051.0,0.07693934]
[1735491412970,0.453757,94054.0,94051.0,0.07693934]
[1735491413595,0.586124,94055.0,94045.0,0.0001708]
[1735491413874,0.611743,94055.0,94047.0,0.0799]
[1735491414044,0.55303,94055.0,94047.0,0.0799]
[1735491414188,0.55303,94055.0,94051.0,0.002]
[1735491414412,0.28498781,94054.0,94051.0,0.002]
[1735491414618,0.43450581,94054.0,94051.0,0.002]
[1735491414871,0.146316,94053.0,94047.0,0.0799]
[1735491415035,0.28498781,94054.0,94051.0,0.006]
[1735491415254,0.28498781,94055.0,94051.0,0.006]
[1735491415465,0.28498781,94055.0,94054.0,0.098]
[1735491415665,0.28498781,94055.0,94054.0,0.2235]
[1735491416101,0.28498781,94055.0,94054.0,0.3135]
[1735491416233,0.28498781,94061.0,94060.0,0.1764]
[1735491416439,0.28498781,94061.0,94060.0,0.2664]
[1735491416643,0.28498781,94061.0,94060.0,0.3135]
[1735491416863,0.30166627,94061.0,94060.0,0.3135]
[1735491417704,0.01667846,94061.0,94060.0,0.3145]
[1735491418268,0.01667846,94061.0,94060.0,0.3135]
[1735491419069,0.01767846,94061.0,94060.0,0.3215]
[1735491420499,0.01767846,94061.0,94060.0,0.3245]
[1735491421266,0.01767846,94061.0,94060.0,0.3215]
[1735491421607,0.01767846,94061.0,94060.0,0.3245]
[1735491421831,0.01667846,94061.0,94060.0,0.3165]
[1735491422029,0.01667846,94061.0,94060.0,0.3135]
[1735491422477,0.01667846,94061.0,94060.0,0.3235]
[1735491422683,0.0491,94109.0,94060.0,0.3235]
[1735491422684,0.02084908,94124.0,94079.0,0.1305]
[1735491422865,0.28504417,94083.0,94079.0,0.1305]
[1735491423059,0.28504417,94083.0,94082.0,0.2709]
[1735491423258,0.28504417,94083.0,94082.0,0.3205]
[1735491424215,0.51996164,94123.0,94082.0,0.3205]
[1735491424216,0.23754564,94085.0,94084.0,0.2305]
[1735491424540,0.23754564,94085.0,94084.0,0.3205]
[1735491424761,0.32067469,94109.0,94084.0,0.3205]
[1735491424762,0.23754564,94098.0,94084.0,0.35255]
[1735491424956,0.14252597,94091.0,94090.0,0.1]
[1735491425159,0.14252597,94091.0,94090.0,0.2709]
[1735491425821,0.14252597,94096.0,94091.0,0.0809]
[1735491426021,0.14252597,94096.0,94095.0,0.1709]
[1735491426622,0.15919949,94096.0,94095.0,0.1709]
[1735491426841,0.01667352,94096.0,94095.0,0.1709]
[1735491427040,0.01667352,94096.0,94089.0,0.0809]
[1735491427294,0.418315,94095.0,94087.0,0.0809]
[1735491427491,0.418315,94095.0,94090.0,0.09]
[1735491427691,0.418315,94095.0,94087.0,0.0809]
[1735491427895,0.19003462,94092.0,94087.0,0.0809]
[1735491428049,0.233737,94091.0,94090.0,0.09]
[1735491428255,0.233737,94091.0,94087.0,0.0809]
[1735491428441,0.19003462,94092.0,94091.0,0.29]
[1735491428659,0.01193462,94092.0,94091.0,0.52448632]
[1735491428880,0.23754564,94096.0,94095.0,0.4205]
[1735491429080,0.23754564,94096.0,94095.0,0.58703495]
[1735491429505,0.23754564,94096.0,94095.0,0.59103495]
[1735491429887,0.01667356,94119.0,94118.0,0.09]
[1735491430109,0.01676005,94119.0,94118.0,0.167]
[1735491430310,8.649e-05,94119.0,94111.0,0.09]
[1735491430485,0.01675553,94119.0,94100.0,0.077]
[1735491430703,1.33344155,94118.0,94095.0,0.099]
[1735491430898,2.553863,94117.0,94095.0,0.099]
[1735491431100,2.047187,94116.0,94095.0,0.099]
[1735491431354,2.614666,94117.0,94095.0,0.009]
[1735491431482,4.399548,94117.0,94086.0,0.07161285]
[1735491431681,4.399548,94118.0,94086.0,0.17161285]
[1735491432294,4.63709364,94118.0,94086.0,0.17161285]
[1735491432498,4.399548,94117.0,94086.0,0.17161285]
[1735491432767,0.076,94116.0,94095.0,0.004]
[1735491432965,4.399548,94115.0,94095.0,0.004]
[1735491433383,4.397833,94114.0,94111.0,0.003]
[1735491433591,4.344155,94113.0,94111.0,0.003]
[1735491433766,4.041208,94112.0,94088.0,0.09]
[1735491433966,4.041208,94111.0,94088.0,0.09]
[1735491434176,3.505696,94110.0,94088.0,0.09]
[1735491434331,2.892301,94109.0,94095.0,0.001]
[1735491434526,2.803761,94108.0,94095.0,0.001]
[1735491434754,2.80376,94107.0,94088.0,0.09]
[1735491434955,2.80376,94106.0,94088.0,0.09]
[1735491435157,2.757888,94105.0,94088.0,0.09]
[1735491435364,3.196393,94104.0,94088.0,0.09]
[1735491435533,2.634168,94103.0,94088.0,0.09]
[1735491435763,2.564823,94102.0,94088.0,0.09]
[1735491435960,2.303439,94101.0,94086.0,0.17161285]
[1735491436168,0.076,94116.0,94088.0,0.09]
[1735491436368,0.006,94114.0,94111.0,0.001]
[1735491436578,4.397833,94113.0,94111.0,0.001]
[1735491437025,0.003,94108.0,94095.0,0.001]
[1735491437203,0.006,94114.0,94088.0,0.09]
[1735491437204,4.397833,94107.0,94088.0,0.09]
[1735491437407,4.397833,94113.0,94088.0,0.09]
[1735491437561,4.397833,94115.0,94088.0,0.09]
[1735491437764,0.003,94101.0,94088.0,0.09]
[1735491437967,4.763636,94100.0,94088.0,0.09]
[1735491438409,4.502241,94100.0,94088.0,0.09]
[1735491438610,0.01667387,94098.0,94088.0,0.09]
[1735491438824,4.127765,94097.0,94088.0,0.09]
[1735491439028,3.817292,94097.0,94088.0,0.09]
[1735491439210,2.902879,94096.0,94088.0,0.09]
[1735491439382,2.902879,94097.0,94088.0,0.09]
[1735491439580,2.902879,94097.0,94088.0,0.091]
[1735491440229,2.902879,94097.0,94086.0,0.17161285]
[1735491440230,1.717,94097.0,94093.0,0.1]
[1735491440434,0.01667387,94098.0,94097.0,0.1]
[1735491440662,0.01667387,94098.0,94097.0,0.188]
[1735491441369,0.01667387,94098.0,94097.0,0.2647]
[1735491441543,0.01667387,94098.0,94097.0,0.29573]
[1735491441721,0.01667387,94098.0,94097.0,0.29373]
[1735491441925,0.01667387,94098.0,94097.0,0.2627]
[1735491442682,0.01667387,94098.0,94097.0,0.2697]
[1735491442888,8.649e-05,94119.0,94097.0,0.2697]
[1735491442889,8.649e-05,94119.0,94097.0,0.2677]
[1735491443040,8.649e-05,94119.0,94118.0,0.1707]
[1735491444070,8.649e-05,94119.0,94118.0,0.23878207]
[1735491444274,8.649e-05,94119.0,94118.0,0.32878207]
[1735491445108,8.649e-05,94119.0,94118.0,0.33178207]
[1735491445310,8.649e-05,94119.0,94118.0,0.32878207]
[1735491445561,8.649e-05,94119.0,94118.0,0.3063]
[1735491445960,8.649e-05,94119.0,94118.0,0.3113]
[1735491446467,8.649e-05,94119.0,94118.0,0.3103]
[1735491446824,8.649e-05,94119.0,94118.0,0.3113]
[1735491448416,0.00017179,94119.0,94118.0,0.3113]
[1735491452415,0.00017179,94119.0,94118.0,0.2657]
[1735491455754,0.39816905,94163.0,94128.0,0.1]
[1735491456004,0.00050824,94153.0,94128.0,0.1]
[1735491456227,2.902879,94152.0,94128.0,0.1]
[1735491456923,2.902879,94152.0,94128.0,0.102]
[1735491457190,0.01666773,94147.0,94128.0,0.101]
[1735491457425,0.01666773,94147.0,94128.0,0.1]
[1735491457426,2.902879,94146.0,94128.0,0.1]
[1735491457641,2.902879,94146.0,94128.0,0.102]
[1735491457854,2.90278591,94146.0,94128.0,0.102]
[1735491458083,2.902786,94146.0,94128.0,0.102]
[1735491458305,2.902786,94145.0,94128.0,0.102]
[1735491458535,2.902786,94144.0,94128.0,0.102]
[1735491458739,2.902786,94143.0,94128.0,0.102]
[1735491458981,2.902786,94142.0,94128.0,0.101]
[1735491459200,2.902786,94141.0,94128.0,0.101]
[1735491459464,2.902786,94140.0,94128.0,0.101]
[1735491459609,0.01666773,94147.0,94128.0,0.1]
[1735491459610,2.902786,94139.0,94128.0,0.1]
[1735491459830,2.902786,94138.0,94128.0,0.1]
[1735491460026,2.902786,94137.0,94128.0,0.1]
[1735491460249,2.91945404,94136.0,94128.0,0.1]
[1735491460447,2.902786,94135.0,94126.0,0.1]
[1735491460654,2.902786,94134.0,94126.0,0.1]
[1735491460851,2.902786,94133.0,94126.0,0.1]
[1735491461055,2.902786,94132.0,94126.0,0.1]
[1735491461199,2.902786,94131.0,94126.0,0.1]
[1735491461402,2.902786,94130.0,94126.0,0.1]
[1735491461642,2.902786,94129.0,94126.0,0.1]
[1735491461848,2.902786,94128.0,94126.0,0.1]
[1735491462047,2.902786,94127.0,94126.0,0.1]
[1735491462918,2.751,94127.0,94126.0,0.1]
[1735491463157,2.722,94127.0,94126.0,0.1]
[1735491463624,2.461,94127.0,94126.0,0.1]
[1735491463792,2.462,94127.0,94126.0,0.1764]
[1735491464112,1.967,94127.0,94126.0,0.1764]
[1735491464430,1.913,94127.0,94126.0,0.1764]
[1735491464674,1.841,94127.0,94126.0,0.1764]
[1735491466169,0.001,94127.0,94126.0,0.1764]
[1735491466370,2.341,94127.0,94126.0,0.1764]
[1735491466575,2.292,94127.0,94126.0,0.1764]
[1735491468604,2.30866836,94127.0,94126.0,0.1764]
[1735491469006,2.30866836,94127.0,94126.0,0.0764]
[1735491470931,2.30866836,94127.0,94126.0,0.001]
[1735491472115,2.30766836,94127.0,94126.0,0.001]
[1735491472436,2.30866836,94127.0,94126.0,0.0001706]
[1735491472775,2.30866836,94127.0,94126.0,0.0011706]
[1735491472916,2.30766836,94127.0,94126.0,0.0001706]
[1735491473125,2.31066836,94127.0,94126.0,0.0001706]
[1735491473717,2.30766836,94127.0,94126.0,0.0001706]
[1735491474126,2.31066836,94127.0,94126.0,0.0001706]
[1735491475449,2.30766836,94127.0,94126.0,0.0001706]
[1735491475658,2.31066836,94127.0,94126.0,0.0001706]
[1735491476093,2.30766836,94127.0,94126.0,0.0001706]
[1735491476420,2.30966836,94127.0,94126.0,0.0001706]
[1735491476949,2.01723003,94127.0,94126.0,0.0001706]
[1735491478740,2.00056167,94127.0,94126.0,0.0001706]
[1735491480474,0.002,94127.0,94126.0,0.0001706]
[1735491480687,2.64604242,94127.0,94126.0,0.0001706]
[1735491481671,2.66271286,94127.0,94126.0,0.0001706]
[1735491482051,2.66071286,94127.0,94126.0,0.0001706]
[1735491482523,2.66371286,94127.0,94126.0,0.0001706]
[1735491482846,2.66071286,94127.0,94126.0,0.0001706]
[1735491483230,2.66371286,94127.0,94126.0,0.0001706]
[1735491484008,2.64704242,94127.0,94126.0,0.0001706]
[1735491484211,2.613348,94127.0,94126.0,0.0001706]
[1735491484795,2.617348,94127.0,94126.0,0.0001706]
[1735491485221,2.6174333,94127.0,94126.0,0.0001706]
[1735491485423,2.6134333,94127.0,94126.0,0.0001706]
[1735491486032,2.6174333,94127.0,94126.0,0.0001706]
[1735491487209,2.63410435,94127.0,94126.0,0.0001706]
[1735491488737,2.95477904,94127.0,94126.0,0.0001706]
[1735491488948,2.95477904,94127.0,94109.0,0.07149573]
[1735491489159,2.610348,94126.0,94109.0,0.07149573]
[1735491490416,0.28499931,94114.0,94109.0,0.07149573]
[1735491490618,2.610348,94113.0,94109.0,0.07149573]
[1735491491134,2.62701969,94113.0,94109.0,0.07149573]
[1735491491337,2.610348,94112.0,94109.0,0.07149573]
[1735491491549,2.610348,94112.0,94109.0,0.07158222]
[1735491492590,2.610348,94112.0,94109.0,0.07258222]
[1735491493032,2.610348,94112.0,94109.0,0.07158222]
[1735491493387,2.610348,94112.0,94109.0,0.07358222]
[1735491494155,2.610348,94114.0,94109.0,0.07358222]
[1735491494604,2.610348,94114.0,94109.0,0.00208649]
[1735491495019,2.610348,94114.0,94109.0,8.649e-05]
[1735491495220,2.610348,94115.0,94109.0,8.649e-05]
[1735491495745,0.001,94114.0,94109.0,0.00108649]
[1735491496040,2.89534731,94113.0,94109.0,0.00108649]
[1735491496221,2.610348,94112.0,94109.0,0.00108649]
[1735491496426,2.610348,94112.0,94109.0,8.649e-05]
[1735491496903,0.28499931,94111.0,94109.0,0.00108649]
[1735491497100,2.610348,94110.0,94109.0,0.00108649]
[1735491497303,2.610348,94110.0,94109.0,0.00125709]
[1735491497514,2.652963,94110.0,94109.0,0.00125709]
[1735491498255,0.32761431,94110.0,94109.0,0.00125709]
[1735491498454,2.93796231,94110.0,94109.0,0.00125709]
[1735491499165,2.93796231,94110.0,94109.0,0.00025709]
[1735491499723,2.94096231,94110.0,94109.0,0.00125709]
[1735491499922,2.89834731,94110.0,94109.0,0.00125709]
[1735491500119,2.89834731,94110.0,94109.0,0.00025709]
[1735491500120,2.655962,94110.0,94109.0,0.00025709]
[1735491501732,2.655962,94110.0,94079.0,0.1]
[1735491501733,2.70701021,94110.0,94084.0,0.06814152]
[1735491501934,0.01370602,94094.0,94063.0,0.08629398]
[1735491502235,2.610348,94093.0,94063.0,0.08629398]
[1735491502588,0.01667702,94087.0,94063.0,0.08629398]
[1735491502788,2.610348,94086.0,94063.0,0.08629398]
[1735491503365,0.18970837,94070.0,94063.0,0.08629398]
[1735491503566,2.610348,94069.0,94063.0,0.08629398]
[1735491504135,0.01667782,94068.0,94063.0,0.08629398]
[1735491504337,2.610348,94067.0,94063.0,0.08629398]
[1735491504728,2.610348,94067.0,94063.0,0.0863804]
[1735491504934,2.610348,94067.0,94064.0,0.0821]
[1735491505768,2.611348,94067.0,94064.0,0.0821]
[1735491505948,2.610348,94066.0,94064.0,0.0821]
[1735491506331,2.610348,94067.0,94064.0,0.0851]
[1735491506962,2.610348,94067.0,94064.0,0.0821]
[1735491507164,2.610348,94067.0,94064.0,0.0851]
[1735491507929,2.611348,94067.0,94064.0,0.0921]
[1735491508067,2.610348,94066.0,94064.0,0.0921]
[1735491508521,2.610348,94066.0,94064.0,0.0891]
[1735491508688,2.610348,94066.0,94064.0,0.0911]
[1735491509301,2.610348,94066.0,94064.0,0.0822708]
[1735491509620,0.001,94066.0,94064.0,0.0922708]
[1735491509826,2.610348,94065.0,94064.0,0.0922708]
[1735491511179,2.62702589,94065.0,94064.0,0.0922708]
[1735491511563,2.62702589,94065.0,94064.0,0.0902708]
[1735491511859,2.62702589,94065.0,94064.0,0.0932708]
[1735491512177,2.62702589,94065.0,94064.0,0.0852708]
[1735491512860,2.62702589,94065.0,94064.0,0.07745604]
[1735491513034,2.62802589,94065.0,94064.0,0.08545604]
[1735491513841,2.611348,94065.0,94064.0,0.08545604]
[1735491514543,2.611348,94065.0,94064.0,0.17175002]
[1735491514743,0.001,94065.0,94064.0,0.35382366]
[1735491514924,0.001,94065.0,94064.0,0.32165002]
[1735491516364,2.4,94065.0,94064.0,0.32165002]
[1735491516563,2.611348,94065.0,94064.0,0.32165002]
[1735491516978,2.611348,94065.0,94064.0,0.23535604]
[1735491517360,2.611348,94065.0,94064.0,0.32165002]
[1735491518414,2.611348,94065.0,94064.0,0.23535604]
[1735491518614,2.62802574,94065.0,94064.0,0.32165002]
[1735491518821,2.62802574,94065.0,94064.0,0.23535604]
[1735491519015,2.62802574,94065.0,94064.0,0.32165002]
[1735491519618,2.37267774,94065.0,94064.0,0.32165002]
[1735491519821,1.92667774,94065.0,94064.0,0.32165002]
[1735491520030,0.01767774,94065.0,94064.0,0.32165002]
[1735491520656,2.07276314,94065.0,94064.0,0.32165002]
[1735491520860,2.08676314,94065.0,94064.0,0.32165002]
[1735491521099,1.89476314,94065.0,94064.0,0.32165002]
[1735491521298,0.36776314,94065.0,94064.0,0.32165002]
[1735491521513,0.31276314,94065.0,94064.0,0.32165002]
[1735491522831,0.15076314,94065.0,94064.0,0.32165002]
[1735491523852,0.1340854,94065.0,94064.0,0.32165002]
[1735491524738,0.0010854,94065.0,94064.0,0.32165002]
[1735491527359,0.01776248,94065.0,94064.0,0.32165002]
[1735491530425,0.18856511,94082.0,94068.0,0.1]
[1735491530672,5.05,94081.0,94068.0,0.1]
[1735491530893,0.01667717,94079.0,94068.0,0.1]
[1735491531100,5.05,94078.0,94068.0,0.1]
[1735491532944,5.0500854,94078.0,94068.0,0.1]
[1735491533182,5.05,94077.0,94068.0,0.101]
[1735491533403,4.185,94076.0,94068.0,0.1]
[1735491533635,2.919,94075.0,94068.0,0.1]
[1735491533843,2.817,94074.0,94068.0,0.102]
[1735491534094,3.781,94077.0,94068.0,0.102]
[1735491534306,3.781,94077.0,94068.0,0.1]
[1735491534814,3.781,94077.0,94068.0,0.103]
[1735491535824,3.781,94077.0,94068.0,0.1028999]
[1735491536498,3.781,94077.0,94076.0,0.08629398]
[1735491536753,3.781,94077.0,94068.0,0.0028999]
[1735491536978,8.54e-05,94078.0,94068.0,0.0028999]
[1735491537643,8.54e-05,94078.0,94064.0,0.07445604]
[1735491538018,2.381946,94077.0,94076.0,0.003]
[1735491538182,2.381946,94077.0,94064.0,0.07445604]
[1735491538386,2.61942272,94077.0,94064.0,0.07445604]
[1735491538596,2.679702,94076.0,94068.0,0.002]
[1735491538849,2.679702,94076.0,94068.0,0.08629398]
[1735491539099,2.679702,94076.0,94064.0,0.07445604]
[1735491539319,2.91717872,94076.0,94064.0,0.07445604]
[1735491539507,3.892085,94075.0,94064.0,0.07445604]
[1735491540233,0.25415469,94073.0,94064.0,0.07445604]
[1735491540590,3.040524,94072.0,94064.0,0.07445604]
[1735491541369,0.23747672,94065.0,94064.0,0.07445604]
[1735491542381,0.30124053,94073.0,94064.0,0.07445604]
[1735491542569,0.909247,94072.0,94064.0,0.07445604]
[1735491542792,0.884768,94071.0,94064.0,0.07445604]
[1735491543205,0.911447,94072.0,94064.0,0.07445604]
[1735491544133,1.19600956,94072.0,94064.0,0.07445604]
[1735491544343,1.181459,94071.0,94064.0,0.07435524]
[1735491544715,0.925323,94071.0,94064.0,0.07435524]
[1735491544915,0.28456256,94072.0,94070.0,0.08629398]
[1735491545263,8.54e-05,94071.0,94070.0,0.23369398]
[1735491546425,8.54e-05,94071.0,94070.0,0.23869398]
[1735491546645,8.54e-05,94071.0,94070.0,0.23969398]
[1735491546888,8.54e-05,94071.0,94070.0,0.23469398]
[1735491547093,8.54e-05,94071.0,94070.0,0.1484]
[1735491547250,8.54e-05,94071.0,94070.0,0.31379398]
[1735491548499,0.01676152,94071.0,94070.0,0.31379398]
[1735491549108,0.01776152,94071.0,94070.0,0.32579398]
[1735491553661,0.0010854,94071.0,94070.0,0.32579398]
[1735491555934,0.0010854,94071.0,94070.0,0.3583991]
[1735491556940,8.54e-05,94071.0,94070.0,0.3463991]
[1735491557140,8.54e-05,94071.0,94070.0,0.3513991]
[1735491557295,0.0010854,94071.0,94070.0,0.3603991]
[1735491557506,0.0010854,94071.0,94070.0,0.3553991]
[1735491557711,8.54e-05,94071.0,94070.0,0.3463991]
[1735491557932,0.0010854,94071.0,94070.0,0.3523991]
[1735491558349,0.0020854,94071.0,94070.0,0.3613991]
[1735491558673,0.0020854,94071.0,94070.0,0.56538542]
[1735491562388,0.03169576,94095.0,94094.0,0.08629398]
[1735491563245,0.01667362,94095.0,94094.0,0.08629398]
[1735491563455,0.01667362,94095.0,94093.0,0.18629398]
[1735491563622,5.078e-05,94095.0,94094.0,0.08629398]
[1735491563826,5.078e-05,94095.0,94093.0,0.1]
[1735491564245,5.078e-05,94095.0,94094.0,0.08729398]
[1735491565508,5.078e-05,94095.0,94094.0,0.09129398]
[1735491566451,0.01672425,94095.0,94094.0,0.09029398]
[1735491566835,5.078e-05,94095.0,94094.0,0.09029398]
[1735491567892,5.078e-05,94095.0,94094.0,0.09129398]
[1735491568100,0.00013618,94095.0,94094.0,0.09129398]
[1735491569806,0.01680972,94095.0,94094.0,0.09129398]
[1735491571855,1.09338872,94095.0,94094.0,0.005]
[1735491572030,1.31637272,94095.0,94094.0,0.005]
[1735491572232,1.36011572,94095.0,94094.0,0.005]
[1735491572434,1.06351472,94095.0,94094.0,0.005]
[1735491573047,1.06351472,94095.0,94093.0,0.1]
[1735491573221,0.746904,94094.0,94093.0,0.1]
[1735491576217,0.746904,94094.0,94093.0,0.101]
[1735491578518,0.76357804,94094.0,94093.0,0.101]
[1735491579271,0.54699304,94094.0,94093.0,0.20602338]
[1735491579472,0.01667404,94094.0,94093.0,0.26989398]
[1735491579876,0.01667404,94094.0,94093.0,0.27006478]
[1735491580643,0.01667404,94094.0,94093.0,0.27106478]
[1735491581181,0.01667404,94094.0,94093.0,0.27606478]
[1735491581325,0.01667404,94094.0,94093.0,0.27906478]
[1735491582539,0.01667404,94094.0,94093.0,0.27606478]
[1735491582963,0.01667404,94094.0,94093.0,0.27906478]
[1735491583164,0.01667404,94094.0,94093.0,0.27206478]
[1735491583739,0.01667404,94094.0,94093.0,0.28006478]
[1735491583939,0.00013618,94095.0,94093.0,0.28006478]
[1735491584143,0.00013618,94095.0,94094.0,0.1]
[1735491584748,0.00013618,94095.0,94094.0,0.18629398]
[1735491586822,0.00013618,94095.0,94094.0,0.18929398]
[1735491587310,0.01680869,94095.0,94094.0,0.18929398]
[1735491587649,0.01680869,94095.0,94094.0,0.18629398]
[1735491589465,0.01680869,94095.0,94094.0,0.18929398]
[1735491589868,0.01680869,94095.0,94094.0,0.18458354]
[1735491590077,0.01680869,94095.0,94094.0,0.21322897]
[1735491590320,0.01680869,94095.0,94094.0,0.22222897]
[1735491590835,0.01680869,94095.0,94094.0,0.22522897]
[1735491592082,0.01680869,94095.0,94094.0,0.21622897]
[1735491592484,0.01680869,94095.0,94094.0,0.19358354]
[1735491592721,0.01680869,94095.0,94094.0,0.19375434]
[1735491594004,0.00013618,94095.0,94094.0,0.19365534]
[1735491597406,0.01680907,94095.0,94094.0,0.19365534]
[1735491598609,0.96098507,94095.0,94094.0,0.19365534]
[1735491598807,0.01680907,94095.0,94094.0,0.19365534]
[1735491599111,0.96098507,94095.0,94094.0,0.19365534]
[1735491599309,0.98872107,94095.0,94094.0,0.19365534]
[1735491601183,0.01680907,94095.0,94094.0,0.19365534]
[1735491601383,0.00013618,94095.0,94094.0,0.19365534]
[1735491602889,0.00013618,94095.0,94094.0,0.0121708]
[1735491603313,3.70432618,94095.0,94094.0,0.0121708]
[1735491603516,3.41627718,94095.0,94094.0,0.0121708]
[1735491603932,3.41627718,94095.0,94094.0,0.0091708]
[1735491604381,3.41627718,94095.0,94094.0,0.0001708]
[1735491604719,3.41627718,94095.0,94094.0,0.0011708]
[1735491604927,3.41627718,94095.0,94094.0,0.0001708]
[1735491605461,3.41827718,94095.0,94094.0,0.0001708]
[1735491605635,3.41627718,94095.0,94094.0,0.0001708]
[1735491606447,3.41827718,94095.0,94094.0,0.0001708]
[1735491606873,3.41627718,94095.0,94094.0,0.0001708]
[1735491607315,3.41827718,94095.0,94094.0,0.0001708]
[1735491607674,3.48497718,94095.0,94094.0,0.0001708]